bitfinex/quotes_SOLUSD_20250402
["timestamp","ask_amount","ask_price","bid_price","bid_amount"]
[1743607255141,55.90342835,128.87,128.79,7.7645]
[1743607255657,26.0,128.84,128.8,8.1]
[1743607255969,0.063,128.87,128.8,8.1]
[1743607256171,0.063,128.87,128.81,0.14216157]
[1743607256629,0.063,128.87,128.82,7.7627]
[1743607256833,0.063,128.87,128.83,290.6]
[1743607257154,0.063,128.87,128.85,18.4272]
[1743607257345,0.063,128.87,128.86,8.1]
[1743607257741,0.063,128.87,128.85,18.4272]
[1743607257935,0.063,128.87,128.86,8.1]
[1743607258257,0.063,128.87,128.85,18.4272]
[1743607258751,0.063,128.87,128.86,8.1]
[1743607260665,0.063,128.87,128.86,15.8603]
[1743607261252,0.063,128.87,128.86,34.50994886]
[1743607261439,0.063,128.87,128.86,26.89181043]
[1743607261957,0.063,128.87,128.86,34.65211043]
[1743607262756,0.063,128.87,128.86,325.11211043]
[1743607263166,0.063,128.92,128.86,344.51301043]
[1743607263876,0.063,128.92,128.87,18.79181043]
[1743607264459,0.063,128.94,128.93,26.0]
[1743607264659,0.063,128.94,128.93,41.8561]
[1743607265475,7.7495,129.04,128.94,18.79181043]
[1743607265668,37.58992835,129.04,128.95,8.1]
[1743607265856,37.58992835,129.04,128.96,18.79181043]
[1743607266051,7.7495,129.04,128.95,8.1]
[1743607266373,0.063,129.0,128.95,8.1]
[1743607266674,0.063,129.0,128.96,8.1]
[1743607267081,29.84042835,128.99,128.93,19.1983]
[1743607267377,29.90342835,129.0,128.97,8.08]
[1743607267871,0.063,129.0,128.97,8.08]
[1743607268866,0.063,129.0,128.97,15.8337]
[1743607269586,0.063,129.0,128.97,8.08]
[1743607270047,0.063,129.0,128.98,7.7531]
[1743607271851,0.063,129.0,128.97,8.08]
[1743607272373,0.063,129.0,128.97,15.8335]
[1743607272555,0.063,129.0,128.99,26.0]
[1743607272751,0.063,129.0,128.99,334.86964886]
[1743607272954,0.063,129.0,128.99,316.22]
[1743607273355,0.063,129.0,128.99,290.22]
[1743607273676,0.063,129.0,128.99,18.79181043]
[1743607273861,0.063,129.05,129.0,64.17701043]
[1743607275272,0.063,129.05,129.0,71.92881043]
[1743607275669,0.063,129.05,129.01,11.38284683]
[1743607275861,0.063,129.05,129.03,18.79181043]
[1743607276058,0.063,129.05,129.02,8.08]
[1743607280268,0.063,129.05,129.01,18.79181043]
[1743607280478,0.063,129.05,129.02,8.08]
[1743607280965,0.063,129.05,129.01,18.79181043]
[1743607281173,0.063,129.05,129.02,8.08]
[1743607282279,0.063,129.05,128.99,18.79181043]
[1743607282685,29.90342835,129.05,129.0,290.0]
[1743607282989,29.84042835,129.03,129.0,290.0]
[1743607283196,7.7507,129.02,129.0,290.0]
[1743607283364,7.7507,129.02,129.01,8.08]
[1743607283969,37.59112835,129.02,129.01,8.08]
[1743607284786,95.72152835,129.02,128.99,290.0]
[1743607284963,29.84042835,129.0,128.91,18.79181043]
[1743607285162,27.1359,128.98,128.9,21.0038]
[1743607285386,27.1359,128.98,128.91,0.14216157]
[1743607285574,27.1359,128.98,128.91,18.79181043]
[1743607285889,7.7495,129.04,128.93,26.87181043]
[1743607286086,27.1233,129.04,128.97,18.79181043]
[1743607286392,27.1233,129.04,128.98,8.08]
[1743607286594,29.84042835,129.02,128.98,8.08]
[1743607286791,56.96372835,129.04,128.98,8.08]
[1743607287382,7.7495,129.04,128.99,0.14216157]
[1743607287692,7.8121,129.05,128.99,18.79181043]
[1743607288787,0.063,129.05,128.99,26.54421043]
[1743607289503,0.063,129.05,128.99,18.79181043]
[1743607289673,0.063,129.05,129.0,34.08]
[1743607289873,29.90342835,129.05,129.0,8.08]
[1743607290291,0.063,129.05,129.0,8.08]
[1743607290669,0.063,129.05,129.0,15.8318]
[1743607291896,0.063,129.05,129.01,26.54291043]
[1743607292792,0.063,129.05,129.03,18.79181043]
[1743607293997,0.063,129.05,129.03,26.54171043]
[1743607294295,0.063,129.05,129.04,44.79181043]
[1743607295275,0.063,129.09,129.05,30.94761043]
[1743607295477,0.063,129.09,129.07,18.79181043]
[1743607296401,0.063,129.1,129.09,44.79181043]
[1743607296605,7.7417,129.17,129.1,18.79181043]
[1743607296806,7.7417,129.17,129.14,26.0]
[1743607297005,27.096,129.17,129.11,8.08]
[1743607297210,27.096,129.17,129.12,8.08]
[1743607297391,29.84042835,129.16,129.12,8.08]
[1743607297886,29.84042835,129.15,129.12,8.08]
[1743607298086,27.1002,129.15,129.12,8.08]
[1743607298501,56.94062835,129.15,129.12,8.08]
[1743607299307,27.1002,129.15,129.12,8.08]
[1743607300506,56.94062835,129.15,129.12,8.08]
[1743607300886,27.1002,129.15,129.12,8.08]
[1743607301283,29.84042835,129.13,129.06,18.79181043]
[1743607301514,29.84042835,129.13,129.07,0.07]
[1743607302005,29.84042835,129.12,129.07,0.07]
[1743607302195,27.1065,129.12,129.07,0.07]
[1743607302607,27.1065,129.12,129.08,8.08]
[1743607302783,27.1065,129.12,129.09,289.88]
[1743607302989,29.84042835,129.1,129.02,18.79181043]
[1743607303183,27.1065,129.12,129.03,8.15]
[1743607303184,29.84042835,129.08,129.03,8.15]
[1743607303383,29.84042835,129.07,129.03,8.15]
[1743607304205,7.7489,129.05,129.03,0.07]
[1743607304408,29.84042835,129.04,129.0,0.03]
[1743607304591,29.84042835,129.01,129.0,8.11]
[1743607304785,29.84042835,129.01,128.92,6.0774]
[1743607304991,29.84042835,129.01,128.91,0.03]
[1743607304992,29.84042835,128.96,128.91,0.03]
[1743607305608,29.84042835,128.95,128.91,0.03]
[1743607305916,29.84042835,128.92,128.91,0.03]
[1743607306295,37.59712835,128.92,128.88,8.08]
[1743607306534,29.84042835,128.89,128.88,8.08]
[1743607306809,27.1485,128.92,128.88,8.08]
[1743607307194,29.84042835,128.91,128.88,8.08]
[1743607307394,29.84042835,128.9,128.89,8.08]
[1743607307715,29.84042835,128.91,128.89,8.08]
[1743607308394,7.7555,128.94,128.89,8.08]
[1743607308598,29.84042835,128.93,128.89,8.08]
[1743607308798,7.7555,128.94,128.89,8.08]
[1743607308799,29.84042835,128.92,128.89,8.08]
[1743607309720,29.84042835,128.93,128.89,8.08]
[1743607309904,37.59592835,128.94,128.89,8.08]
[1743607310107,37.59532835,128.95,128.89,8.08]
[1743607310303,29.84042835,128.93,128.89,8.08]
[1743607310494,29.84042835,128.94,128.89,8.08]
[1743607311106,56.98262835,128.95,128.89,8.08]
[1743607311321,37.59532835,128.95,128.89,8.08]
[1743607311631,7.7549,128.95,128.89,8.08]
[1743607311809,37.59532835,128.95,128.89,8.08]
[1743607312812,37.59532835,128.95,128.9,290.12]
[1743607313011,29.84042835,128.94,128.9,290.12]
[1743607313910,55.84042835,128.92,128.9,290.12]
[1743607314232,55.84042835,128.92,128.91,8.08]
[1743607314800,63.59712835,128.92,128.9,290.12]
[1743607315115,33.7567,128.92,128.91,8.08]
[1743607315800,33.7567,128.92,128.9,290.12]
[1743607315996,29.84042835,128.91,128.9,298.2]
[1743607316419,29.84042835,128.91,128.9,290.12]
[1743607316595,29.84042835,128.91,128.88,8.08]
[1743607316796,65.6853,128.92,128.88,8.08]
[1743607316997,29.84042835,128.89,128.88,8.08]
[1743607317735,26.0,128.87,128.86,0.03]
[1743607318033,26.0,128.87,128.86,8.11]
[1743607319077,33.7597,128.87,128.86,8.11]
[1743607319207,7.7597,128.87,128.86,8.11]
[1743607320234,37.60012835,128.87,128.86,8.11]
[1743607320725,37.60012835,128.87,128.86,0.0001]
[1743607321037,37.60012835,128.87,128.85,290.16]
[1743607321238,29.84042835,128.86,128.85,290.16]
[1743607322116,29.84042835,128.86,128.85,298.24]
[1743607323030,37.60072835,128.86,128.85,298.24]
[1743607323435,57.00162835,128.86,128.81,290.26]
[1743607323632,29.84042835,128.84,128.81,290.26]
[1743607323836,27.1612,128.86,128.81,290.26]
[1743607324130,7.7603,128.86,128.81,290.26]
[1743607324351,37.60072835,128.86,128.81,290.26]
[1743607324673,29.84042835,128.85,128.82,8.08]
[1743607324828,7.7603,128.86,128.82,8.08]
[1743607324829,29.84042835,128.84,128.82,8.08]
[1743607325030,7.7621,128.83,128.82,8.08]
[1743607327360,37.60252835,128.83,128.81,290.26]
[1743607327534,29.84042835,128.82,128.81,290.26]
[1743607327732,29.84042835,128.82,128.81,298.34]
[1743607327947,29.84042835,128.82,128.81,290.26]
[1743607328143,7.7621,128.83,128.81,298.34]
[1743607329463,29.84042835,128.82,128.81,290.26]
[1743607329644,26.0,128.79,128.78,290.36]
[1743607329832,55.84042835,128.79,128.78,298.44]
[1743607330032,55.84042835,128.79,128.76,0.03]
[1743607330379,29.84042835,128.77,128.76,0.03]
[1743607330570,29.84042835,128.77,128.72,0.03]
[1743607330768,36.42922835,128.82,128.72,0.03]
[1743607330769,29.84042835,128.73,128.72,0.03]
[1743607331074,26.0,128.7,128.69,0.063]
[1743607331279,7.7694,128.71,128.69,8.143]
[1743607331873,37.60982835,128.71,128.69,8.143]
[1743607333257,7.7694,128.71,128.69,8.143]
[1743607333577,7.7686,128.73,128.69,8.143]
[1743607333945,37.60822835,128.74,128.69,8.143]
[1743607334751,7.7672,128.75,128.69,15.9134]
[1743607334958,37.60762835,128.75,128.69,8.143]
[1743607335160,7.7672,128.75,128.7,8.08]
[1743607335768,29.84042835,128.77,128.7,15.8496]
[1743607335948,37.60582835,128.78,128.7,15.8496]
[1743607336551,7.7654,128.78,128.7,15.8496]
[1743607336754,37.60582835,128.78,128.7,15.8496]
[1743607337584,37.60512835,128.79,128.71,18.79181043]
[1743607337759,7.7647,128.79,128.72,6.4213]
[1743607337970,37.60512835,128.79,128.72,6.4213]
[1743607338778,37.60512835,128.79,128.7,7.7696]
[1743607338779,29.84042835,128.77,128.7,7.7696]
[1743607339092,7.7647,128.79,128.73,8.08]
[1743607339282,29.84042835,128.78,128.73,8.08]
[1743607339656,7.7657,128.77,128.73,8.08]
[1743607339854,37.60612835,128.77,128.73,8.08]
[1743607340075,29.84042835,128.76,128.73,8.08]
[1743607340665,7.7657,128.77,128.73,8.08]
[1743607341787,37.60612835,128.77,128.73,8.08]
[1743607342090,26.0,128.73,128.69,0.063]
[1743607342294,29.84042835,128.72,128.7,8.08]
[1743607342799,26.0,128.73,128.7,8.08]
[1743607343093,37.60612835,128.77,128.7,8.08]
[1743607343468,29.84042835,128.76,128.7,8.08]
[1743607343990,37.60702835,128.76,128.7,15.8499]
[1743607344196,7.7666,128.76,128.7,15.8499]
[1743607344399,7.766,128.77,128.7,15.8499]
[1743607344894,37.60642835,128.77,128.7,8.08]
[1743607345202,7.766,128.77,128.7,15.8498]
[1743607345401,37.60642835,128.77,128.71,290.6]
[1743607345900,7.7669,128.75,128.71,290.6]
[1743607346105,37.60732835,128.75,128.71,290.6]
[1743607346408,57.02472835,128.75,128.71,290.6]
[1743607346585,57.02472835,128.75,128.72,8.08]
[1743607346908,57.02472835,128.75,128.73,8.08]
[1743607347204,57.02472835,128.75,128.74,8.08]
[1743607347573,37.60732835,128.75,128.74,8.08]
[1743607347788,7.7657,128.77,128.74,8.08]
[1743607347982,19.4144,128.78,128.74,8.08]
[1743607348383,7.7645,128.79,128.74,8.08]
[1743607349580,29.84042835,128.77,128.74,8.08]
[1743607349979,7.7663,128.76,128.74,8.08]
[1743607350584,7.7663,128.76,128.75,8.08]
[1743607351412,7.7651,128.78,128.75,8.08]
[1743607352088,29.90342835,128.79,128.75,8.08]
[1743607352290,29.84042835,128.77,128.71,296.6628]
[1743607352502,29.84042835,128.77,128.72,8.08]
[1743607352805,29.90342835,128.79,128.72,8.08]
[1743607353479,0.063,128.79,128.72,8.08]
[1743607353676,0.063,128.79,128.73,18.79181043]
[1743607354079,57.07932835,128.79,128.72,8.08]
[1743607354411,29.84042835,128.78,128.73,8.08]
[1743607354904,57.07932835,128.79,128.74,290.64]
[1743607355314,27.2389,128.79,128.74,290.64]
[1743607355685,57.07932835,128.79,128.74,290.64]
[1743607356403,29.84042835,128.78,128.74,290.64]
[1743607357000,57.07932835,128.79,128.74,290.64]
[1743607357206,7.8275,128.79,128.74,290.64]
[1743607359303,0.063,128.79,128.75,12.44676157]
[1743607359618,0.063,128.79,128.77,0.14216157]
[1743607359783,0.063,128.79,128.78,8.08]
[1743607359984,0.063,128.79,128.75,12.3046]
[1743607360317,0.063,128.79,128.78,8.08]
[1743607365283,0.063,128.79,128.75,18.79181043]
[1743607365605,0.063,128.79,128.76,8.08]
[1743607365808,0.063,128.79,128.77,8.08]
[1743607366383,0.063,128.79,128.78,8.08]
[1743607366584,0.063,128.79,128.74,290.64]
[1743607366802,0.063,128.79,128.75,8.08]
[1743607367199,0.063,128.79,128.76,8.08]
[1743607367486,29.84042835,128.78,128.74,290.64]
[1743607367704,0.063,128.79,128.74,290.64]
[1743607367705,29.84042835,128.77,128.74,290.64]
[1743607367909,29.84042835,128.77,128.75,8.08]
[1743607368301,57.01842835,128.78,128.75,8.08]
[1743607368498,27.178,128.78,128.75,8.08]
[1743607368902,7.7651,128.78,128.75,8.08]
[1743607370309,7.8275,128.79,128.75,8.08]
[1743607371825,0.063,128.79,128.75,15.8469]
[1743607373195,0.063,128.79,128.76,25.15591043]
[1743607373619,0.063,128.79,128.77,8.08]
[1743607374708,0.063,128.79,128.77,15.8454]
[1743607374912,0.063,128.79,128.78,18.79181043]
[1743607378135,0.063,128.79,128.78,309.31181043]
[1743607380331,0.063,128.79,128.78,290.52]
[1743607380517,0.063,128.79,128.78,298.6]
[1743607381031,0.063,128.79,128.78,298.58]
[1743607384336,27.2389,128.79,128.75,290.5]
[1743607384538,29.84042835,128.78,128.75,290.5]
[1743607384919,29.84042835,128.77,128.75,290.5]
[1743607385335,29.84042835,128.78,128.76,8.06]
[1743607385635,63.67222835,128.79,128.76,8.06]
[1743607385823,33.8318,128.79,128.76,8.06]
[1743607386229,63.67222835,128.79,128.76,8.06]
[1743607386433,33.8318,128.79,128.76,8.06]
[1743607386615,29.84042835,128.78,128.76,8.06]
[1743607387035,29.84042835,128.77,128.75,290.5]
[1743607387840,18.81662256,128.77,128.75,290.5]
[1743607388044,18.79181043,128.78,128.75,290.5]
[1743607388222,37.60843299,128.78,128.76,8.06]
[1743607388418,7.7657,128.77,128.75,290.5]
[1743607388621,7.7657,128.77,128.76,8.06]
[1743607389315,33.7657,128.77,128.76,8.06]
[1743607390419,18.79181043,128.76,128.72,0.03]
[1743607390722,30.09887402,128.74,128.72,0.03]
[1743607391436,0.14216157,128.72,128.69,0.063]
[1743607391740,30.09887402,128.71,128.69,0.063]
[1743607392247,30.09887402,128.72,128.69,0.063]
[1743607392417,7.7694,128.71,128.69,0.063]
[1743607393126,7.7681,128.73,128.69,0.063]
[1743607394643,27.1864,128.74,128.69,0.063]
[1743607395152,7.7675,128.74,128.69,0.063]
[1743607395455,57.28527402,128.74,128.7,8.06]
[1743607395637,30.09887402,128.73,128.7,8.06]
[1743607395952,30.09887402,128.73,128.71,8.06]
[1743607396537,30.09887402,128.73,128.72,8.06]
[1743607396849,37.86697402,128.73,128.72,8.06]
[1743607397448,38.4984,128.7,128.68,2.8148284]
[1743607397636,74.89068445,128.69,128.67,2.84e-05]
[1743607397841,30.09887402,128.68,128.67,2.84e-05]
[1743607398042,48.89068445,128.68,128.67,2.84e-05]
[1743607398354,30.09887402,128.68,128.67,2.84e-05]
[1743607399063,7.7712,128.68,128.67,2.84e-05]
[1743607399433,18.79181043,128.71,128.67,2.84e-05]
[1743607399434,7.7694,128.71,128.67,2.84e-05]
[1743607399635,7.7694,128.71,128.68,298.78]
[1743607399860,27.1929,128.71,128.68,298.78]
[1743607401159,19.4235,128.71,128.68,298.78]
[1743607401356,7.7663,128.76,128.68,306.5511]
[1743607401530,7.7663,128.76,128.71,26.0]
[1743607402167,7.766,128.77,128.71,26.0]
[1743607402757,11.8796157,128.78,128.72,18.79181043]
[1743607402929,11.8796157,128.78,128.74,7.7675]
[1743607403135,0.063,128.79,128.74,7.7675]
[1743607404164,7.8275,128.79,128.73,15.8279]
[1743607404367,7.8275,128.79,128.74,18.79181043]
[1743607404541,0.063,128.79,128.74,18.79181043]
[1743607405064,0.063,128.79,128.75,25.9886]
[1743607405262,0.063,128.79,128.78,26.0]
[1743607405471,0.063,128.79,128.78,324.74]
[1743607406947,0.063,128.79,128.78,298.74]
[1743607407145,0.063,128.79,128.72,12.3619]
[1743607407374,0.063,128.79,128.74,290.68]
[1743607408473,0.063,128.79,128.75,8.06]
[1743607411565,0.063,128.79,128.74,290.68]
[1743607411770,56.09887402,128.78,128.74,290.68]
[1743607412074,56.09887402,128.78,128.75,8.06]
[1743607412974,30.09887402,128.77,128.74,290.68]
[1743607413176,7.7663,128.76,128.74,290.68]
[1743607414078,7.7663,128.76,128.75,8.06]
[1743607415280,27.1807,128.77,128.75,8.06]
[1743607416382,7.7657,128.77,128.75,8.06]
[1743607418096,30.09887402,128.76,128.74,290.68]
[1743607418261,26.0,128.73,128.7,290.62]
[1743607418963,26.0,128.74,128.7,290.62]
[1743607419280,26.0,128.74,128.71,8.06]
[1743607419865,33.7681,128.73,128.71,8.06]
[1743607420481,7.7681,128.73,128.71,8.06]
[1743607421879,27.1864,128.74,128.71,8.06]
[1743607422382,57.28527402,128.74,128.7,290.62]
[1743607422683,30.09887402,128.72,128.7,290.62]
[1743607423183,26.0,128.69,128.67,290.6600284]
[1743607423691,30.09887402,128.73,128.67,290.6600284]
[1743607423985,27.1864,128.74,128.68,8.06]
[1743607424283,57.28527402,128.74,128.68,8.06]
[1743607424580,7.7675,128.74,128.68,8.06]
[1743607425296,7.7675,128.74,128.69,290.66]
[1743607426180,49.51497402,128.76,128.69,290.66]
[1743607426181,7.7669,128.75,128.69,290.66]
[1743607426491,27.1843,128.75,128.69,290.66]
[1743607426983,27.1843,128.75,128.69,298.4303]
[1743607427187,27.1843,128.75,128.7,8.06]
[1743607427877,56.09887402,128.72,128.7,8.06]
[1743607428073,7.7694,128.71,128.7,8.06]
[1743607429486,19.4176,128.75,128.7,8.06]
[1743607429795,7.7675,128.74,128.7,8.06]
[1743607429974,7.7663,128.76,128.7,14.1602]
[1743607430904,7.7651,128.78,128.71,18.79181043]
[1743607431073,57.27687402,128.78,128.71,18.79181043]
[1743607431891,57.27687402,128.78,128.7,14.1602]
[1743607431892,30.09887402,128.77,128.7,14.1602]
[1743607432192,7.7669,128.75,128.7,14.1602]
[1743607432987,7.7669,128.75,128.71,290.66]
[1743607433166,7.7657,128.77,128.72,18.79181043]
[1743607433366,7.7657,128.77,128.72,18.64964886]
[1743607434372,7.8281,128.78,128.72,18.64964886]
[1743607434873,30.09887402,128.77,128.71,290.66]
[1743607435382,57.33987402,128.78,128.71,298.4293]
[1743607435695,57.33987402,128.78,128.71,290.66]
[1743607435897,57.33987402,128.78,128.71,298.4293]
[1743607436075,57.33987402,128.78,128.71,290.66]
[1743607436271,30.09887402,128.77,128.72,8.06]
[1743607436478,30.09887402,128.75,128.73,8.06]
[1743607436676,30.09887402,128.75,128.74,8.06]
[1743607436888,19.4159,128.76,128.74,8.06]
[1743607437500,49.51477402,128.76,128.74,8.06]
[1743607438003,19.4159,128.76,128.74,8.06]
[1743607438198,26.0,128.75,128.71,290.66]
[1743607438494,37.86767402,128.72,128.71,298.72]
[1743607440291,57.28967402,128.72,128.67,2.84e-05]
[1743607440478,30.09887402,128.72,128.71,8.06]
[1743607440790,27.1843,128.75,128.71,8.06]
[1743607440988,30.09887402,128.74,128.71,8.06]
[1743607441195,30.09887402,128.73,128.71,8.06]
[1743607441572,30.09887402,128.74,128.71,8.06]
[1743607441803,7.7669,128.75,128.71,8.06]
[1743607443197,7.7669,128.75,128.72,290.68]
[1743607444099,37.86577402,128.75,128.72,290.68]
[1743607444490,57.28317402,128.75,128.72,290.68]
[1743607444688,27.1843,128.75,128.72,290.68]
[1743607445185,30.09887402,128.74,128.73,8.06]
[1743607446100,30.09887402,128.74,128.72,290.68]
[1743607446305,30.09887402,128.73,128.68,290.66]
[1743607446492,30.09887402,128.71,128.68,290.66]
[1743607446710,7.7706,128.69,128.68,290.66]
[1743607447406,7.7706,128.69,128.68,298.72]
[1743607448520,7.7688,128.72,128.68,298.72]
[1743607448702,19.4199,128.74,128.69,290.68]
[1743607449010,7.8299,128.75,128.69,298.4504]
[1743607449302,7.8299,128.75,128.69,304.5084]
[1743607450007,7.8299,128.75,128.7,8.06]
[1743607450215,0.063,128.75,128.7,8.06]
[1743607450505,0.063,128.75,128.7,15.8298]
[1743607450712,0.063,128.75,128.71,18.79181043]
[1743607451704,0.063,128.75,128.72,7.7688]
[1743607452506,0.063,128.75,128.73,290.68]
[1743607453808,56.30403559,128.75,128.73,290.68]
[1743607454006,0.14216157,128.73,128.66,290.66]
[1743607454197,30.09887402,128.68,128.66,290.66]
[1743607454396,30.09887402,128.67,128.66,290.66]
[1743607455010,30.09887402,128.67,128.66,298.7]
[1743607455214,30.09887402,128.69,128.66,298.7]
[1743607455794,7.7712,128.68,128.66,298.7]
[1743607456292,7.7694,128.71,128.66,298.7]
[1743607456604,7.7681,128.73,128.68,6.3671]
[1743607457690,7.7675,128.74,128.68,6.3671]
[1743607457997,57.28527402,128.74,128.68,6.3671]
[1743607458210,30.09887402,128.73,128.69,8.04]
[1743607458512,30.09887402,128.72,128.69,8.04]
[1743607458716,30.09887402,128.71,128.66,290.69]
[1743607458897,30.09887402,128.7,128.67,8.04]
[1743607459312,30.09887402,128.69,128.66,290.69]
[1743607459519,30.09887402,128.68,128.66,290.69]
[1743607459822,37.87067402,128.67,128.66,290.69]
[1743607460620,37.87067402,128.67,128.62,0.03]
[1743607460789,30.09887402,128.65,128.62,290.73]
[1743607461109,30.09887402,128.64,128.63,8.04]
[1743607461284,30.09887402,128.65,128.63,8.04]
[1743607461888,7.7736,128.64,128.63,8.04]
[1743607462591,7.7736,128.64,128.62,290.73]
[1743607462592,37.87247402,128.64,128.62,290.73]
[1743607462808,30.09887402,128.63,128.62,290.73]
[1743607463100,37.87247402,128.64,128.62,298.77]
[1743607463532,7.7736,128.64,128.62,298.77]
[1743607463892,7.773,128.65,128.62,298.77]
[1743607465022,27.2055,128.65,128.62,298.77]
[1743607466090,57.30437402,128.65,128.62,298.77]
[1743607466288,30.09887402,128.64,128.62,298.77]
[1743607466735,26.0,128.62,128.59,0.03]
[1743607467022,30.09887402,128.6,128.59,8.07]
[1743607467190,56.09887402,128.62,128.59,8.07]
[1743607467926,30.09887402,128.6,128.59,0.03]
[1743607468215,37.87427402,128.61,128.59,8.07]
[1743607468611,7.7754,128.61,128.59,8.07]
[1743607468792,30.09887402,128.63,128.59,8.07]
[1743607469131,7.7749,128.62,128.59,8.07]
[1743607469821,27.211,128.63,128.59,8.07]
[1743607470195,30.09887402,128.62,128.59,8.07]
[1743607471413,57.30987402,128.63,128.59,8.07]
[1743607472120,7.7742,128.63,128.59,8.07]
[1743607472313,19.4327,128.65,128.59,8.07]
[1743607472314,37.87127402,128.66,128.59,15.8465]
[1743607472519,30.09887402,128.64,128.59,14.1564]
[1743607473605,30.09887402,128.63,128.59,8.07]
[1743607473813,7.7748,128.62,128.59,8.07]
[1743607474616,7.7748,128.62,128.59,298.95]
[1743607476128,37.87367402,128.62,128.59,298.95]
[1743607477017,7.7748,128.62,128.59,298.95]
[1743607477527,27.2119,128.62,128.59,298.95]
[1743607477721,7.7748,128.62,128.59,298.95]
[1743607479104,19.4313,128.66,128.59,298.95]
[1743607479304,57.30257402,128.66,128.59,298.95]
[1743607479504,30.09887402,128.65,128.59,298.95]
[1743607479705,30.09887402,128.64,128.59,298.95]
[1743607480509,30.09887402,128.65,128.59,298.95]
[1743607481413,7.7748,128.62,128.59,298.95]
[1743607482228,57.31077402,128.62,128.59,298.95]
[1743607482822,27.2119,128.62,128.59,298.95]
[1743607483210,57.31077402,128.62,128.59,298.95]
[1743607483411,27.2119,128.62,128.59,298.95]
[1743607483618,7.7748,128.62,128.59,298.95]
[1743607485016,57.31077402,128.62,128.59,298.95]
[1743607485534,30.09887402,128.63,128.59,298.95]
[1743607486307,0.063,128.65,128.59,298.95]
[1743607486834,30.09887402,128.64,128.59,298.95]
[1743607487733,7.7742,128.63,128.59,298.95]
[1743607488838,30.09887402,128.62,128.59,298.95]
[1743607489940,7.7754,128.61,128.59,298.95]
[1743607491942,30.09887402,128.64,128.59,298.95]
[1743607492850,57.36737402,128.65,128.59,298.95]
[1743607493241,30.09887402,128.64,128.59,298.95]
[1743607493436,30.16187402,128.63,128.59,298.95]
[1743607494026,7.7748,128.62,128.59,298.95]
[1743607494262,7.8375,128.63,128.59,298.95]
[1743607495642,0.063,128.63,128.62,12.3426]
[1743607496223,0.063,128.63,128.62,20.1174]
[1743607496548,0.063,128.63,128.62,38.90921043]
[1743607497124,0.063,128.63,128.62,12.3426]
[1743607497948,0.063,128.63,128.62,38.90921043]
[1743607498169,0.063,128.65,128.63,18.79181043]
[1743607498461,0.063,128.65,128.64,8.04]
[1743607499231,0.063,128.65,128.64,34.60541043]
[1743607500735,7.7694,128.71,128.65,18.79181043]
[1743607500935,7.7694,128.71,128.65,0.14216157]
[1743607501135,0.063,128.74,128.69,38.228]
[1743607501463,37.92967402,128.74,128.7,298.9]
[1743607501783,30.09887402,128.72,128.7,298.9]
[1743607502129,27.2497,128.74,128.7,298.9]
[1743607502435,57.34857402,128.74,128.7,298.9]
[1743607503078,27.2497,128.74,128.7,298.9]
[1743607504475,27.2497,128.74,128.71,8.04]
[1743607504779,7.8308,128.74,128.71,8.04]